fUSD/lending_fUSD_20251211
["ID","MTS","AMOUNT","RATE_DAILY","PERIOD"]
[398183519,1765426240709,-585.831769,0.00018533,2]
[398183520,1765426240718,-585.831769,0.00018533,2]
[398183521,1765426240727,-585.831769,0.00018533,2]
[398183522,1765426240737,-585.831769,0.00018533,2]
[398183523,1765426240747,-8786.0,0.00018533,2]
[398183524,1765426240757,-511.09,0.00018533,2]
[398183525,1765426240766,-9999.99,0.00018533,2]
[398183526,1765426240776,-34534.66,0.00018533,2]
[398183527,1765426240785,-9999.99,0.00018533,2]
[398183528,1765426240794,-150.99,0.00018533,2]
[398183529,1765426240804,-507.61,0.00018533,5]
[398183530,1765426240813,-1580.49,0.00018533,2]
[398183531,1765426240823,-999.99,0.00018533,2]
[398183532,1765426240832,-87380.14,0.00018533,2]
[398183533,1765426240841,-404.5,0.00018533,2]
[398183534,1765426240861,-150.99,0.00018533,2]
[398183535,1765426240870,-9999.99,0.00018533,2]
[398183536,1765426240880,-1065.18,0.00018546,2]
[398183537,1765426240890,-510.0,0.00018547,2]
[398183538,1765426240899,-500.0,0.00018547,2]
[398183539,1765426240909,-400.93181638,0.00018547,2]
[398183540,1765426240919,-500.0,0.00018547,2]
[398183541,1765426240929,-439.0,0.00018547,2]
[398183542,1765426240939,-3610.0,0.00018547,2]
[398183543,1765426240948,-500.0,0.00018547,2]
[398183544,1765426240958,-157.13616747,0.00018547,2]
[398183545,1765426240968,-500.0,0.00018547,2]
[398183546,1765426240977,-500.0,0.00018547,2]
[398183547,1765426240986,-295.99070524,0.00018571,2]
[398183548,1765426240996,-201.0,0.00018571,2]
[398183549,1765426241007,-500.0,0.00018575,2]
[398183550,1765426241016,-447.0,0.0001865,2]
[398183551,1765426241025,-581.0,0.00018653,2]
[398183552,1765426241035,-510.0,0.00018684,2]
[398183553,1765426241044,-500.0,0.00018684,2]
[398183554,1765426241054,-500.0,0.00018684,2]
[398183555,1765426241063,-439.0,0.00018684,2]
[398183556,1765426241072,-3610.0,0.00018684,2]
[398183557,1765426241082,-500.0,0.00018684,2]
[398183558,1765426241091,-500.0,0.00018684,2]
[398183559,1765426241101,-500.0,0.00018684,2]
[398183560,1765426241110,-244.33474347,0.00018706,2]
[398183561,1765426241120,-260.35,0.0001876,2]
[398183562,1765426241129,-1065.18,0.0001882,2]
[398183563,1765426241139,-951.29993,0.0001882,2]
[398183564,1765426241149,-510.0,0.00018821,2]
[398183565,1765426241158,-500.0,0.00018821,2]
[398183566,1765426241167,-500.0,0.00018821,2]
[398183567,1765426241177,-439.0,0.00018821,2]
[398183568,1765426241186,-3610.0,0.00018821,2]
[398183569,1765426241195,-500.0,0.00018821,2]
[398183570,1765426241205,-500.0,0.00018821,2]
[398183571,1765426241214,-500.0,0.00018821,2]
[398183572,1765426241223,-291.65,0.00018837,2]
[398183573,1765426241233,-510.0,0.00018958,2]
[398183574,1765426241242,-500.0,0.00018958,2]
[398183575,1765426241251,-500.0,0.00018958,2]
[398183576,1765426241260,-439.0,0.00018958,2]
[398183577,1765426241270,-3610.0,0.00018958,2]
[398183578,1765426241279,-500.0,0.00018958,2]
[398183579,1765426241288,-500.0,0.00018958,2]
[398183580,1765426241298,-289.45417404,0.00018958,2]
[398183581,1765426241308,-1594.06065809,0.00018968,2]
[398183582,1765426241321,-500.0,0.00018999,2]
[398183583,1765426241331,-500.0,0.00018999,2]
[398183584,1765426241340,-47351.8087015,0.00019,2]
[398183585,1765426241351,-283.14747838,0.00019,2]
[398183586,1765426241360,-1065.18,0.00019094,2]
[398183587,1765426241370,-510.0,0.00019095,2]
[398183588,1765426241379,-500.0,0.00019095,2]
[398183589,1765426241390,-500.0,0.00019095,2]
[398183590,1765426241399,-439.0,0.00019095,2]
[398183591,1765426241413,-3610.0,0.00019095,2]
[398183592,1765426241424,-500.0,0.00019095,2]
[398183593,1765426241434,-500.0,0.00019095,2]
[398183594,1765426241443,-190.8,0.00019169,2]
[398183595,1765426241453,-1600.0,0.00019173,2]
[398183596,1765426241464,-510.0,0.00019232,2]
[398183597,1765426241474,-500.0,0.00019232,2]
[398183598,1765426241484,-500.0,0.00019232,2]
[398183599,1765426241494,-439.0,0.00019232,2]
[398183600,1765426241670,-2474.38761557,0.00019232,2]
[398183601,1765426241685,-1135.61238443,0.00019232,2]
[398183602,1765426241694,-568.55451357,0.00019232,2]
[398183603,1765426241703,-485.48134944,0.00019232,2]
[398183604,1765426241718,-14.51865056,0.00019232,2]
[398183605,1765426241728,-151.0,0.00019339,2]
[398183606,1765426241738,-151.0,0.00019339,2]
[398183607,1765426241747,-73.29434939,0.00019339,2]
[398183608,1765426241758,-77.70565061,0.00019339,2]
[398183609,1765426241767,-151.0,0.00019339,2]
[398183610,1765426241776,-151.0,0.00019339,2]
[398183611,1765426241786,-151.0,0.00019339,2]
[398183612,1765426241795,-151.0,0.00019339,2]
[398183613,1765426241804,-151.0,0.00019339,2]
[398183614,1765426241814,-267.273807,0.00019339,2]
[398183615,1765426241823,-151.0,0.00019339,2]
[398183616,1765426241833,-99.12554239,0.00019339,2]
[398183617,1765426241844,-168.14826461,0.00019339,2]
[398183618,1765426241853,-232.30634039,0.00019339,2]
[398183619,1765426241865,-34.96746661,0.00019339,2]
[398183620,1765426241874,-267.273807,0.00019339,2]
[398183621,1765426241884,-151.0,0.00019339,2]
[398183622,1765426241893,-174.77805549,0.00019339,2]
[398183623,1765426241904,-83.91400551,0.00019339,2]
[398183624,1765426241913,-151.0,0.00019339,2]
[398183625,1765426241923,-255.08599418,0.00019339,2]
[398183632,1765426242959,-242.01653283,0.00018533,2]
[398183633,1765426242969,-461.16769082,0.00019339,2]
[398183634,1765426242979,-716.253685,0.00019339,2]
[398183635,1765426242988,-716.253685,0.00019339,2]
[398183636,1765426242998,-716.253685,0.00019339,2]
[398183637,1765426243007,-333.3,0.00019358,2]
[398183638,1765426243017,-151.0,0.00019358,2]
[398183639,1765426243026,-1065.18,0.00019368,2]
[398183640,1765426243036,-462.535007,0.00019369,2]
[398183647,1765426246012,-47.464993,0.00019369,2]
[398183648,1765426246022,-256.755007,0.00019369,2]
[398183652,1765426246614,-106.4425035,0.00019369,2]
[398183659,1765426502281,250.0,0.000202,30]
[398183663,1765426607551,163.44,0.00016048,2]
[398183666,1765426653782,200.0,0.00017205,2]
[398183667,1765426654547,207.4,0.00017205,2]
[398183668,1765426655005,215.0738,0.00017205,2]
[398183669,1765426655618,223.0315306,0.00017205,2]
[398183670,1765426656216,231.28369723,0.00017205,2]
[398183671,1765426656928,239.84119403,0.00017205,2]
[398183672,1765426657553,248.71531821,0.00017205,2]
[398183673,1765426658192,257.91778498,0.00017205,2]
[398183674,1765426662607,165.22,0.00013699,2]
[398183679,1765426807968,-194.76297889,0.00016227,2]
[398183680,1765426807989,-225.06035057,0.00016227,2]
[398183682,1765426810526,-60.93964943,0.00016227,2]
[398183683,1765426810552,-132.58423289,0.00017038,2]
[398183687,1765426944610,-167.41576711,0.00017038,2]
[398183688,1765426945849,-200.0,0.00017205,2]
[398183689,1765426945872,-142.06073396,0.00017205,2]
[398183691,1765427002889,-202.75679959,0.00017205,2]
[398183692,1765427002912,-250.0,0.0001785,2]
[398183693,1765427002934,-105.18246645,0.0001785,2]
[398183694,1765427017864,-89.81753355,0.0001785,2]
[398183695,1765427017885,-195.0,0.0001785,2]
[398183696,1765427017910,-300.0,0.0001785,2]
[398183697,1765427017930,-159.20400873,0.00017872,2]
[398183698,1765427021916,-255.97845772,0.00017872,2]
[398183699,1765427033372,-377.63423123,0.00017862,2]
[398183700,1765427036417,-177.13657127,0.00017862,2]
[398183701,1765427037960,-344.02154228,0.00017862,2]
[398183702,1765427039374,-264.42650273,0.00017862,2]
[398183703,1765427044318,-278.84188645,0.00017862,2]
[398183704,1765427046697,-300.0,0.00017862,2]
[398183709,1765427144227,-1200.0,0.00017861,2]
[398183710,1765427144266,-300.0,0.00017861,2]
[398183711,1765427156773,-4886.16978135,0.00017862,2]
[398183712,1765427156802,-10000.01,0.00017862,2]
[398183714,1765427168083,-130.45948469,0.00017862,2]
[398183715,1765427168113,-762.0,0.00017872,2]
[398183716,1765427168148,-578.20924308,0.00017873,2]
[398183717,1765427168177,-307.08770607,0.00017873,2]
[398183718,1765427168207,-500.0,0.00017873,2]
[398183719,1765427168237,-500.0,0.00017873,2]
[398183720,1765427168268,-500.0,0.00017873,2]
[398183721,1765427168297,-500.0,0.00017873,2]
[398183722,1765427168332,-316.91478925,0.00017873,2]
[398183723,1765427168363,-550.0,0.00017972,2]
[398183724,1765427196600,225.88534025,0.000178,2]
[398183725,1765427213441,179.0263676,0.00017933,2]
[398183726,1765427214224,2515.47,0.000162,5]
[398183729,1765427229419,158.61563288,0.00017933,2]
[398183730,1765427271444,147.14021309,0.00017,2]
[398183731,1765427271467,10000.01,0.00017,2]
[398183732,1765427271664,10000.01,0.00017,2]
[398183733,1765427277678,-9289.34244618,0.00017,2]
[398183735,1765427280532,-10000.01,0.00017,2]
[398183736,1765427285082,-10000.01,0.00017,2]
[398183738,1765427289393,-10000.01,0.00017,2]
[398183739,1765427289579,-10000.01,0.00017,2]
[398183740,1765427289705,-10000.01,0.00017,2]
[398183741,1765427289826,-10000.01,0.00017,2]
[398183742,1765427292339,-10000.01,0.00017,2]
[398183743,1765427298789,-10000.01,0.00017,2]
[398183744,1765427298890,-10000.01,0.00017,2]
[398183745,1765427299000,-10000.01,0.00017,2]
[398183746,1765427299115,-10000.01,0.00017,2]
[398183747,1765427299221,-10000.01,0.00017,2]
[398183748,1765427316453,8127.6605053,0.00016,4]
[398183751,1765427408411,-219.3354,0.00016847,2]
[398183757,1765427431886,-383.78397968,0.000168,2]
[398183758,1765427431900,-1159.60827873,0.000168,2]
[398183760,1765427431913,-1361.1810966,0.000168,2]
[398183762,1765427431922,-72.6646,0.00016847,2]
[398183764,1765427431932,-166.66,0.00016847,2]
[398183765,1765427431941,-179.94359966,0.00016983,2]
[398183767,1765427431951,-34.60919686,0.0001699,2]
[398183768,1765427431962,-175.53281312,0.0001699,2]
[398183769,1765427431972,-151.0,0.00016997,2]
[398183770,1765427431981,-265.72051093,0.00016998,2]
[398183771,1765427431992,-34.27948907,0.00016998,2]
[398183772,1765427432001,-237.13493893,0.00016998,2]
[398183773,1765427432024,-962.86506107,0.00016998,2]
[398183774,1765427432034,-300.0,0.00016998,2]
[398183775,1765427432043,-550.0,0.00016998,2]
[398183776,1765427432053,-500.0,0.00016999,2]
[398183777,1765427432062,-265.23251824,0.00016999,2]
[398183778,1765427432071,-155.88515103,0.00016999,2]
[398183779,1765427432080,-500.0,0.00016999,2]
[398183780,1765427432090,-272.54409564,0.00016999,2]
[398183781,1765427432100,-288.25193141,0.00016999,2]
[398183782,1765427432109,-417.5779397,0.00016999,2]
[398183783,1765427432119,-500.0,0.00016999,2]
[398183784,1765427432129,-500.0,0.00016999,2]
[398183785,1765427432138,-500.0,0.00016999,2]
[398183786,1765427432148,-552.5009693,0.00016999,2]
[398183787,1765427432158,-500.0,0.00016999,2]
[398183788,1765427432167,-500.0,0.00016999,2]
[398183790,1765427432177,-500.0,0.00016999,2]
[398183792,1765427432187,-374.40440397,0.00016999,2]
[398183794,1765427432196,-500.0,0.00016999,2]
[398183796,1765427432206,-354.29898115,0.00016999,2]
[398183798,1765427432217,-145.70101885,0.00016999,2]
[398183801,1765427432227,-500.0,0.00016999,2]
[398183802,1765427432236,-500.0,0.00016999,2]
[398183804,1765427432246,-500.0,0.00016999,2]
[398183820,1765427432382,-500.0,0.00016999,2]
[398183822,1765427432395,-500.0,0.00016999,2]
[398183824,1765427432404,-500.0,0.00016999,2]
[398183826,1765427432413,-500.0,0.00016999,2]
[398183828,1765427432422,-500.0,0.00016999,2]
[398183830,1765427432433,-500.0,0.00016999,2]
[398183832,1765427432443,-500.0,0.00016999,2]
[398183833,1765427432452,-39293.26184915,0.00017,2]
[398183836,1765427432463,-292.02204625,0.00017,2]
[398183838,1765427432474,-815.82400348,0.00017,2]
[398183840,1765427432485,-466.139668,0.00017,2]
[398183841,1765427432500,-462.1300956,0.00017,2]
[398183842,1765427432511,-1075.43,0.00017,2]
[398183843,1765427437890,-16885.94534347,0.00017,2]
[398183844,1765427437979,-1497479.48908767,0.00017,2]
[398183845,1765427437989,-461.71876408,0.00017002,2]
[398183846,1765427437998,-14250.33237035,0.00017002,2]
[398183847,1765427438008,-591.53908205,0.00017102,2]
[398183848,1765427438017,-166.66,0.00017202,2]
[398183849,1765427438026,-166.66,0.00017557,2]
[398183850,1765427438036,-500.0,0.00017873,2]
[398183851,1765427438045,-166.66,0.00017912,2]
[398183852,1765427438055,-827.22874658,0.00017944,2]
[398183853,1765427438065,-327.91816934,0.00017973,2]
[398183854,1765427438074,-167.52959839,0.00017973,2]
[398183855,1765427438084,-500.0,0.00017973,2]
[398183856,1765427438094,-500.0,0.00017973,2]
[398183857,1765427438104,-500.0,0.00017973,2]
[398183858,1765427438114,-555.00834675,0.00017973,2]
[398183859,1765427438124,-517.9462685,0.00017973,2]
[398183860,1765427438134,-500.67417234,0.00017973,2]
[398183861,1765427438145,-162.1105008,0.00017973,2]
[398183863,1765427438155,-500.40607272,0.00017973,2]
[398183864,1765427438165,-500.10675545,0.00017973,2]
[398183866,1765427438175,-330.17212398,0.00017973,2]
[398183868,1765427438186,-500.0,0.00017973,2]
[398183870,1765427438196,-500.0,0.00017973,2]
[398183871,1765427438206,-500.0,0.00017973,2]
[398183873,1765427438215,-570.54818201,0.00017973,2]
[398183875,1765427438225,-360.8100472,0.00017973,2]
[398183876,1765427438234,-151.0,0.00017989,2]
[398183877,1765427438244,-1808.0,0.00017989,2]
[398183878,1765427438253,-1284.0,0.00017989,2]
[398183879,1765427438262,-300.0,0.00017989,2]
[398183880,1765427438409,-151.0,0.00017997,2]
[398183881,1765427438419,-500.0,0.00017998,2]
[398183882,1765427438429,-500.0,0.00017998,2]
[398183883,1765427438439,-500.0,0.00017998,2]
[398183884,1765427438448,-357.74,0.00017999,2]
[398183885,1765427438458,-500.0,0.00017999,2]
[398183886,1765427438468,-500.0,0.00017999,2]
[398183887,1765427438477,-500.0,0.00017999,2]
[398183888,1765427438487,-500.0,0.00017999,2]
[398183889,1765427438496,-196102.41571622,0.00018,2]
[398183890,1765427438511,-5992.72435425,0.00018,2]
[398183891,1765427438523,-660.02060821,0.00018,2]
[398183892,1765427438538,-3111.98741628,0.00018,2]
[398183894,1765427440141,-141549.93670156,0.00018,2]
[398183895,1765427440256,-443354.76859314,0.00018,2]
[398183896,1765427440266,-1808.0,0.00018044,2]
[398183897,1765427440275,-1424.0865887,0.00018089,2]
[398183898,1765427440284,-356.0,0.00018103,2]
[398183899,1765427440293,-166.66,0.00018266,2]
[398183900,1765427440302,-500.0,0.00018329,2]
[398183901,1765427440312,-500.0,0.00018356,2]
[398183904,1765427440322,-7884.0,0.00018356,2]
[398183906,1765427440332,-497.64029733,0.00018421,2]
[398183908,1765427440341,-1000.0,0.00018421,2]
[398183910,1765427440350,-1000.0,0.00018421,2]
[398183912,1765427440359,-500.0,0.00018484,2]
[398183913,1765427440368,-500.0,0.00018521,2]
[398183916,1765427440378,-1000.0,0.00018521,2]
[398183918,1765427440387,-500.0,0.00018521,2]
[398183919,1765427440396,-574.12855637,0.00018522,2]
[398183922,1765427440405,-500.0,0.00018522,2]
[398183923,1765427440414,-151.0,0.00018522,2]
[398183925,1765427440423,-500.0,0.00018522,2]
[398183927,1765427440432,-184.19562539,0.00018522,2]
[398183929,1765427440441,-500.0,0.00018522,2]
[398183931,1765427440450,-500.0,0.00018522,2]
[398183933,1765427440459,-500.0,0.00018522,2]
[398183935,1765427440468,-500.0,0.00018522,2]
[398183937,1765427440477,-500.0,0.00018522,2]
[398183939,1765427440486,-500.0,0.00018522,2]
[398183941,1765427440495,-500.0,0.00018522,2]
[398183943,1765427440504,-200.0,0.00018522,2]
[398183945,1765427440515,-500.0,0.00018522,2]
[398183947,1765427440524,-500.0,0.00018522,2]
[398183949,1765427440533,-500.0,0.00018522,2]
[398183951,1765427440543,-151.0,0.00018522,2]
[398183953,1765427440551,-151.0,0.00018522,2]
[398183955,1765427440560,-151.0,0.00018522,2]
[398183957,1765427440570,-151.0,0.00018522,2]
[398183959,1765427440579,-151.0,0.00018522,2]
[398183961,1765427440589,-151.0,0.00018522,2]
[398183963,1765427440598,-151.0,0.00018522,2]
[398183966,1765427440607,-151.0,0.00018522,2]
[398183968,1765427440617,-151.0,0.00018522,2]
[398183969,1765427440626,-151.0,0.00018522,2]
[398183971,1765427440635,-151.0,0.00018522,2]
[398183973,1765427440644,-195.0,0.00018532,2]
[398183975,1765427440653,-2558.16127208,0.00018532,2]
[398183978,1765427440662,-300.0,0.00018532,2]
[398183980,1765427440671,-250.0,0.00018532,2]
[398183981,1765427440680,-300.0,0.00018532,2]
[398183983,1765427440692,-250.0,0.00018532,2]
[398183986,1765427440703,-215.48,0.00018533,2]
[398183987,1765427440713,-9872.38,0.00018533,2]
[398183989,1765427440722,-6464.92,0.00018533,2]
[398183991,1765427440731,-150.99,0.00018533,2]
[398183993,1765427440740,-12034.91,0.00018533,2]
[398183995,1765427440750,-200.0,0.00018535,2]
[398183998,1765427440760,-151.0,0.00018537,2]
[398183999,1765427440771,-420.0,0.00018566,2]
[398184002,1765427440782,-166.66,0.00018621,2]
[398184003,1765427440791,-1680.0,0.00018658,2]
[398184005,1765427440800,-1801.0794224,0.00018694,2]
[398184008,1765427440810,-894.69189566,0.00018904,2]
[398184009,1765427440822,-500.0,0.00018932,2]
[398184012,1765427440831,-1309.88796643,0.00018968,2]
[398184014,1765427440840,-1282.11143422,0.00018968,2]
[398184016,1765427440849,-4052.41572418,0.00018982,2]
[398184018,1765427440859,-30282.74865275,0.00018988,2]
[398184019,1765427440869,-349.0,0.00019014,2]
[398184021,1765427440878,-195.15250485,0.00019028,2]
[398184024,1765427440888,-595.37131296,0.0001907,2]
[398184026,1765427440897,-201.93262011,0.0001907,2]
[398184027,1765427440906,-151.0,0.00019122,2]
[398184030,1765427440915,-151.0,0.00019122,2]
[398184031,1765427440925,-151.0,0.00019122,2]
[398184032,1765427440933,-151.0,0.00019122,2]
[398184033,1765427440943,-760000.0,0.00019125,2]
[398184034,1765427440952,-250.0,0.00019126,2]
[398184035,1765427440960,-3517.6461602,0.00019168,2]
[398184036,1765427440969,-634.19995,0.0001918,2]
[398184037,1765427440978,-1000.0,0.000192,2]
[398184038,1765427440988,-14718.3054282,0.00019225,2]
[398184039,1765427440997,-4182.8792197,0.00019225,2]
[398184040,1765427441008,-40470.1421508,0.00019225,2]
[398184041,1765427441017,-634.19996,0.0001928,2]
[398184042,1765427441026,-211.4,0.00019287,2]
[398184043,1765427441035,-1000.0,0.000193,2]
[398184044,1765427441044,-1000.0,0.000193,2]
[398184045,1765427441053,-1000.0,0.000193,2]
[398184046,1765427441063,-1000.0,0.000193,2]
[398184047,1765427441073,-1000.0,0.000193,2]
[398184048,1765427441083,-1006.0,0.000193,2]
[398184049,1765427441092,-527.57313586,0.0001935,2]
[398184050,1765427441101,-311.1,0.00019358,2]
[398184051,1765427441111,-3171.802,0.00019368,2]
[398184052,1765427441120,-175.777,0.00019368,2]
[398184053,1765427441130,-1000.0,0.00019368,2]
[398184054,1765427441139,-151.42178307,0.00019369,2]
[398184055,1765427441262,-150.0,0.00019369,2]
[398184056,1765427441273,-500.0,0.00019369,2]
[398184057,1765427441284,-168.00488833,0.00019369,2]
[398184058,1765427441293,-150.0,0.00019369,2]
[398184059,1765427441303,-150.0,0.00019369,2]
[398184060,1765427441312,-150.0,0.00019369,2]
[398184061,1765427441322,-150.0,0.00019369,2]
[398184062,1765427441331,-151.37295936,0.00019369,2]
[398184063,1765427441341,-150.0,0.00019369,2]
[398184064,1765427441350,-500.0,0.00019369,2]
[398184065,1765427441360,-150.0,0.00019369,2]
[398184066,1765427441370,-150.0,0.00019369,2]
[398184067,1765427441379,-150.0,0.00019369,2]
[398184068,1765427441389,-155.20312827,0.00019369,2]
[398184069,1765427441400,-150.0,0.00019369,2]
[398184070,1765427441410,-150.0,0.00019369,2]
[398184071,1765427441420,-150.0,0.00019369,2]
[398184072,1765427441431,-500.0,0.00019369,2]
[398184073,1765427441448,-150.0,0.00019369,2]
[398184074,1765427441459,-156.30914827,0.00019369,2]
[398184075,1765427441471,-150.0,0.00019369,2]
[398184076,1765427441481,-150.0,0.00019369,2]
[398184077,1765427441492,-500.0,0.00019369,2]
[398184078,1765427441503,-150.0,0.00019369,2]
[398184079,1765427441513,-150.0,0.00019369,2]
[398184080,1765427441523,-500.0,0.00019369,2]
[398184081,1765427441533,-153.60220335,0.00019369,2]
[398184082,1765427441543,-500.0,0.00019369,2]
[398184083,1765427441552,-150.0,0.00019369,2]
[398184084,1765427441561,-500.0,0.00019369,2]
[398184085,1765427441570,-2420.0,0.00019369,2]
[398184086,1765427441580,-152.6264382,0.00019369,2]
[398184087,1765427441589,-500.0,0.00019369,2]
[398184088,1765427441598,-1183.44,0.00019427,2]
[398184089,1765427441608,-150.0,0.00019427,2]
[398184090,1765427441617,-150.0,0.00019427,2]
[398184091,1765427441626,-150.0,0.00019427,2]
[398184092,1765427441636,-150.0,0.00019427,2]
[398184093,1765427441645,-150.0,0.00019427,2]
[398184094,1765427441655,-260.35,0.00019438,2]
[398184095,1765427441664,-500.0,0.00019506,2]
[398184096,1765427441674,-150.0,0.00019506,2]
[398184097,1765427441688,-513.15981732,0.00019506,2]
[398184098,1765427441701,-150.0,0.00019506,2]
[398184099,1765427441711,-150.0,0.00019506,2]
[398184100,1765427441720,-500.0,0.00019506,2]
[398184101,1765427441731,-150.0,0.00019506,2]
[398184102,1765427441740,-150.0,0.00019506,2]
[398184103,1765427441749,-450.0,0.00019506,2]
[398184104,1765427441759,-500.0,0.00019506,2]
[398184105,1765427441770,-500.0,0.00019506,2]
[398184106,1765427441780,-234.18558553,0.00019506,2]
[398184107,1765427441789,-500.0,0.00019506,2]
[398184108,1765427441799,-2420.0,0.00019506,2]
[398184109,1765427441808,-500.0,0.00019506,2]
[398184110,1765427441818,-1000.0,0.00019521,2]
[398184111,1765427441828,-634.19996,0.0001953,2]
[398184112,1765427441837,-150.0,0.00019564,2]
[398184113,1765427441847,-150.0,0.00019564,2]
[398184114,1765427441856,-150.0,0.00019564,2]
[398184115,1765427441865,-150.0,0.00019564,2]
[398184116,1765427441875,-151.0,0.00019615,2]
[398184117,1765427441884,-617.40005154,0.00019618,2]
[398184118,1765427441893,-1500.0,0.00019623,2]
[398184119,1765427441903,-500.0,0.00019643,2]
[398184120,1765427441912,-150.0,0.00019643,2]
[398184121,1765427441921,-150.0,0.00019643,2]
[398184122,1765427441931,-150.0,0.00019643,2]
[398184123,1765427441942,-150.0,0.00019643,2]
[398184124,1765427441951,-200.0,0.00019643,2]
[398184125,1765427441961,-500.0,0.00019643,2]
[398184126,1765427441970,-500.0,0.00019643,2]
[398184127,1765427441979,-500.0,0.00019643,2]
[398184128,1765427441989,-2420.0,0.00019643,2]
[398184129,1765427441998,-500.0,0.00019643,2]
[398184130,1765427442008,-150.0,0.00019643,2]
[398184131,1765427442017,-250.0,0.00019648,2]
[398184132,1765427442026,-14250.33237034,0.00019668,2]
[398184133,1765427442036,-150.0,0.00019701,2]
[398184134,1765427442045,-200.0,0.00019701,2]
[398184135,1765427442054,-150.0,0.00019701,2]
[398184136,1765427442063,-200.0,0.00019701,2]
[398184137,1765427442072,-1183.44,0.00019701,2]
[398184138,1765427442081,-894.69189567,0.00019716,2]
[398184139,1765427442090,-500.0,0.0001978,2]
[398184140,1765427442100,-150.0,0.0001978,2]
[398184141,1765427442108,-150.0,0.0001978,2]
[398184142,1765427442117,-200.0,0.0001978,2]
[398184143,1765427442126,-500.0,0.0001978,2]
[398184144,1765427442136,-500.0,0.0001978,2]
[398184145,1765427442145,-500.0,0.0001978,2]
[398184146,1765427442154,-2420.0,0.0001978,2]
[398184147,1765427442163,-634.19996,0.0001978,2]
[398184148,1765427442173,-200.0,0.00019783,2]
[398184149,1765427442186,-291.65,0.00019829,2]
[398184150,1765427442195,-150.0,0.00019838,2]
[398184151,1765427442204,-200.0,0.00019838,2]
[398184152,1765427442214,-151.0,0.00019891,2]
[398184153,1765427442224,-500.0,0.00019917,2]
[398184154,1765427442234,-150.0,0.00019917,2]
[398184155,1765427442243,-150.0,0.00019917,2]
[398184156,1765427442253,-500.0,0.00019917,2]
[398184157,1765427442263,-500.0,0.00019917,2]
[398184158,1765427442273,-500.0,0.00019917,2]
[398184159,1765427442284,-2420.0,0.00019917,2]
[398184160,1765427442294,-150.0,0.00019975,2]
[398184161,1765427442304,-1183.44,0.00019975,2]
[398184162,1765427442314,-1019.5481389,0.00020009,2]
[398184163,1765427442325,-634.19995,0.0002003,2]
[398184164,1765427442336,-731.79731246,0.00020053,5]
[398184165,1765427442346,-500.0,0.00020054,2]
[398184166,1765427442356,-250.0,0.00020054,2]
[398184167,1765427442367,-250.0,0.00020054,2]
[398184168,1765427442377,-500.0,0.00020054,2]
[398184169,1765427442388,-500.0,0.00020054,2]
[398184170,1765427442401,-500.0,0.00020054,2]
[398184171,1765427442412,-2420.0,0.00020054,2]
[398184172,1765427442422,-250.0,0.00020112,2]
[398184173,1765427442434,-260.35,0.00020116,2]
[398184174,1765427442446,-1000.0,0.00020166,2]
[398184175,1765427442455,-553.64373807,0.00020166,2]
[398184176,1765427442465,-165.22,0.00020187,2]
[398184177,1765427442475,-470.82570326,0.0002019,5]
[398184178,1765427442484,-500.0,0.00020191,2]